lending/lending_fUSD_20250808
["ID","MTS","AMOUNT","RATE_DAILY","PERIOD"]
[377972171,1754638249654,-400.0,0.00018779,2]
[377972172,1754638249663,-400.0,0.00018779,2]
[377972173,1754638249674,-400.0,0.00018779,2]
[377972174,1754638249684,-554.11,0.00018779,2]
[377972175,1754638249693,-400.0,0.00018779,2]
[377972176,1754638249702,-469.47,0.00018779,2]
[377972177,1754638249711,-439.58,0.00018779,2]
[377972178,1754638249721,-400.0,0.00018779,2]
[377972179,1754638249730,-400.0,0.00018779,2]
[377972180,1754638249740,-524.96,0.00018779,2]
[377972181,1754638249751,-747.66,0.00018779,2]
[377972182,1754638249762,-400.0,0.00018779,2]
[377972183,1754638249771,-726.03,0.00018779,2]
[377972184,1754638249781,-618.84,0.00018779,2]
[377972185,1754638249791,-400.0,0.00018779,2]
[377972186,1754638249801,-400.0,0.00018779,2]
[377972187,1754638249811,-400.0,0.00018779,2]
[377972188,1754638249820,-400.0,0.00018779,2]
[377972189,1754638249830,-400.0,0.00018779,2]
[377972190,1754638249842,-446.0,0.00018779,2]
[377972191,1754638249852,-400.0,0.00018779,2]
[377972192,1754638249862,-400.0,0.00018779,2]
[377972193,1754638249872,-400.0,0.00018779,2]
[377972194,1754638249882,-406.29,0.00018779,2]
[377972195,1754638249892,-521.12,0.00018779,2]
[377972196,1754638249902,-400.0,0.00018779,2]
[377972197,1754638249911,-400.0,0.00018779,2]
[377972198,1754638249921,-400.0,0.00018779,2]
[377972199,1754638249930,-552.33,0.00018779,2]
[377972200,1754638249940,-670.39,0.00018779,2]
[377972201,1754638249951,-765.62,0.00018779,2]
[377972202,1754638249963,-400.0,0.00018779,2]
[377972203,1754638249973,-886.61,0.00018779,2]
[377972204,1754638249983,-703.36,0.00018779,2]
[377972205,1754638249995,-1174.22,0.00018779,2]
[377972206,1754638250006,-400.0,0.00018779,2]
[377972207,1754638250017,-930.98,0.00018779,2]
[377972208,1754638250030,-663.19,0.00018779,2]
[377972209,1754638250040,-400.0,0.00018779,2]
[377972210,1754638250049,-401.41795843,0.00018779,2]
[377972211,1754638250059,-762.98,0.00018779,2]
[377972212,1754638250071,-336.27,0.00018779,2]
[377972213,1754638250080,-512.82,0.00018779,2]
[377972214,1754638250090,-585.62,0.00018779,2]
[377972215,1754638250099,-729.81,0.00018779,2]
[377972216,1754638250109,-400.0,0.00018779,2]
[377972217,1754638250119,-400.0,0.00018779,2]
[377972218,1754638250129,-814.52,0.00018779,2]
[377972219,1754638250139,-653.98,0.00018779,2]
[377972220,1754638250148,-400.0,0.00018779,2]
[377972221,1754638250158,-400.0,0.00018779,2]
[377972222,1754638250168,-400.0,0.00018779,2]
[377972223,1754638250177,-944.47,0.00018779,2]
[377972224,1754638250186,-449.64,0.00018779,2]
[377972225,1754638250196,-530.64,0.00018779,2]
[377972226,1754638250206,-400.0,0.00018779,2]
[377972227,1754638250216,-400.0,0.00018779,2]
[377972228,1754638250226,-400.0,0.00018779,2]
[377972229,1754638250235,-729.25,0.00018779,2]
[377972230,1754638250245,-400.0,0.00018779,2]
[377972231,1754638250254,-442.21,0.00018779,2]
[377972232,1754638250264,-680.34,0.00018779,2]
[377972233,1754638250274,-431.03,0.00018779,2]
[377972234,1754638250283,-745.01,0.00018779,2]
[377972235,1754638250292,-400.0,0.00018779,2]
[377972236,1754638250301,-927.03,0.00018779,2]
[377972237,1754638250311,-400.0,0.00018779,2]
[377972238,1754638250319,-111.20053612,0.00018779,2]
[377972239,1754638250342,-822.38946388,0.00018779,2]
[377972240,1754638250353,-400.0,0.00018779,2]
[377972241,1754638250363,-400.0,0.00018779,2]
[377972242,1754638250373,-879.07,0.00018779,2]
[377972243,1754638250382,-400.0,0.00018779,2]
[377972244,1754638250392,-434.84685782,0.00018779,2]
[377972245,1754638250403,-65.15314218,0.00018779,2]
[377972246,1754638250413,-400.0,0.00018779,2]
[377972247,1754638250423,-400.0,0.00018779,2]
[377972248,1754638250432,-500.0,0.00018779,2]
[377972249,1754638250441,-400.0,0.00018779,2]
[377972250,1754638250451,-400.0,0.00018779,2]
[377972251,1754638250461,-838.14,0.00018779,2]
[377972252,1754638250471,-400.0,0.00018779,2]
[377972253,1754638250480,-472.95,0.00018779,2]
[377972254,1754638250490,-484.21,0.00018779,2]
[377972255,1754638250500,-793.03,0.00018779,2]
[377972256,1754638250509,-1215.19,0.00018779,2]
[377972257,1754638250519,-440.38,0.00018779,2]
[377972258,1754638250528,-685.3,0.00018779,2]
[377972259,1754638250538,-896.32,0.00018779,2]
[377972260,1754638250547,-400.0,0.00018779,2]
[377972261,1754638250556,-400.0,0.00018779,2]
[377972262,1754638250566,-400.0,0.00018779,2]
[377972263,1754638250576,-400.0,0.00018779,2]
[377972264,1754638250585,-400.0,0.00018779,2]
[377972265,1754638250596,-400.0,0.00018779,2]
[377972266,1754638250605,-1699.92,0.00018779,2]
[377972267,1754638250615,-400.0,0.00018779,2]
[377972268,1754638250625,-400.0,0.00018779,2]
[377972269,1754638250635,-922.86,0.00018779,2]
[377972270,1754638250644,-1250.03,0.00018779,2]
[377972271,1754638250654,-400.0,0.00018779,2]
[377972272,1754638250663,-400.0,0.00018779,2]
[377972273,1754638250672,-400.0,0.00018779,2]
[377972274,1754638250682,-670.41,0.00018779,2]
[377972275,1754638250691,-401.70906266,0.00018779,2]
[377972276,1754638250700,-400.0,0.00018779,2]
[377972277,1754638250709,-400.0,0.00018779,2]
[377972278,1754638250718,-877.66,0.00018779,2]
[377972279,1754638250727,-479.67,0.00018779,2]
[377972280,1754638250737,-951.9,0.00018779,2]
[377972281,1754638250746,-400.0,0.00018779,2]
[377972282,1754638250756,-647.79,0.00018779,2]
[377972283,1754638250766,-1243.74,0.00018779,2]
[377972284,1754638250775,-2225.44,0.00018779,2]
[377972285,1754638250785,-1323.46,0.00018779,2]
[377972286,1754638250795,-197.00785645,0.00018779,2]
[377972287,1754638250804,-940.0537289,0.00018779,2]
[377972288,1754638250843,-887.8262711,0.00018779,2]
[377972289,1754638250852,-1485.21,0.00018779,2]
[377972290,1754638250862,-588.38,0.00018779,2]
[377972291,1754638250871,-1409.15,0.00018779,2]
[377972292,1754638250881,-400.0,0.00018779,2]
[377972293,1754638250890,-314.30300418,0.00018779,2]
[377972294,1754638250900,-557.59,0.00018779,2]
[377972295,1754638250909,-400.0,0.00018779,2]
[377972296,1754638250918,-1381.98,0.00018779,2]
[377972297,1754638250928,-2115.48,0.00018779,2]
[377972298,1754638250937,-795.1,0.00018779,2]
[377972299,1754638250947,-1305.9,0.00018779,2]
[377972300,1754638250956,-1200.34,0.00018779,2]
[377972301,1754638250966,-779.35,0.00018779,2]
[377972302,1754638250976,-1418.65,0.00018779,2]
[377972303,1754638250985,-1602.17,0.00018779,2]
[377972304,1754638250994,-400.0,0.00018779,2]
[377972305,1754638251003,-978.03,0.00018779,2]
[377972306,1754638251013,-583.93,0.00018779,2]
[377972307,1754638251024,-400.0,0.00018779,2]
[377972308,1754638251034,-788.13,0.00018779,2]
[377972309,1754638251043,-400.0,0.00018779,2]
[377972310,1754638251053,-639.12,0.00018779,2]
[377972311,1754638251064,-1459.99,0.00018779,2]
[377972312,1754638251074,-1025.64,0.00018779,2]
[377972313,1754638251083,-400.0,0.00018779,2]
[377972314,1754638251094,-1117.0,0.00018779,2]
[377972315,1754638251103,-400.0,0.00018779,2]
[377972316,1754638251112,-3365.22,0.00018779,2]
[377972317,1754638251122,-560.2,0.00018779,2]
[377972318,1754638251131,-614.76,0.00018779,2]
[377972319,1754638251142,-457.15,0.00018779,2]
[377972320,1754638251151,-400.0,0.00018779,2]
[377972321,1754638251161,-1110.79,0.00018779,2]
[377972322,1754638251171,-400.0,0.00018779,2]
[377972323,1754638251180,-947.6,0.00018779,2]
[377972324,1754638251190,-1378.0,0.00018779,2]
[377972325,1754638251199,-400.0,0.00018779,2]
[377972326,1754638251209,-798.15,0.00018779,2]
[377972327,1754638251218,-400.0,0.00018779,2]
[377972328,1754638251228,-2816.31,0.00018779,2]
[377972329,1754638251240,-801.13,0.00018779,2]
[377972330,1754638251251,-1156.52,0.00018779,2]
[377972331,1754638251260,-400.0,0.00018779,2]
[377972332,1754638251270,-7128.29,0.00018779,2]
[377972333,1754638251279,-400.0,0.00018779,2]
[377972334,1754638251288,-798.09,0.00018779,2]
[377972335,1754638251298,-443.69,0.00018779,2]
[377972336,1754638251307,-1595.32,0.00018779,2]
[377972337,1754638251317,-514.85,0.00018779,2]
[377972338,1754638251326,-1347.44,0.00018779,2]
[377972339,1754638251335,-400.0,0.00018779,2]
[377972340,1754638251345,-1570.39,0.00018779,2]
[377972341,1754638251354,-400.0,0.00018779,2]
[377972342,1754638251363,-789.25,0.00018779,2]
[377972343,1754638251374,-474.99,0.00018779,2]
[377972344,1754638251383,-400.0,0.00018779,2]
[377972345,1754638251392,-1852.76,0.00018779,2]
[377972346,1754638251401,-400.0,0.00018779,2]
[377972347,1754638251410,-400.0,0.00018779,2]
[377972348,1754638251420,-730.36,0.00018779,2]
[377972349,1754638251429,-495.56606617,0.00018779,2]
[377972350,1754638251441,-191.69393383,0.00018779,2]
[377972351,1754638251450,-1263.5,0.00018779,2]
[377972352,1754638251460,-400.0,0.00018779,2]
[377972353,1754638251469,-400.0,0.00018779,2]
[377972354,1754638251479,-400.0,0.00018779,2]
[377972355,1754638251488,-1585.04,0.00018779,2]
[377972356,1754638251497,-400.0,0.00018779,2]
[377972357,1754638251507,-855.76,0.00018779,2]
[377972358,1754638251516,-4206.27,0.00018779,2]
[377972359,1754638251525,-400.0,0.00018779,2]
[377972360,1754638251534,-345.83012835,0.00018779,2]
[377972361,1754638251544,-450.71,0.00018779,2]
[377972362,1754638251553,-833.7,0.00018779,2]
[377972363,1754638251562,-1731.51,0.00018779,2]
[377972364,1754638251572,-430.64,0.00018779,2]
[377972365,1754638251581,-533.28,0.00018779,2]
[377972366,1754638251591,-400.0,0.00018779,2]
[377972367,1754638251600,-400.0,0.00018779,2]
[377972368,1754638251610,-500.0,0.00018779,2]
[377972369,1754638251620,-540.8,0.00018779,2]
[377972370,1754638251630,-1036.36,0.00018779,2]
[377972371,1754638251640,-834.67,0.00018779,2]
[377972372,1754638251649,-1260.07,0.00018779,2]
[377972373,1754638251659,-639.73,0.00018779,2]
[377972374,1754638251669,-400.0,0.00018779,2]
[377972375,1754638251679,-495.59,0.00018779,2]
[377972376,1754638251689,-510.54,0.00018779,2]
[377972377,1754638251698,-1177.01065415,0.0001878,2]
[377972378,1754638251708,-200.0,0.0001878,2]
[377972379,1754638251718,-185.822,0.0001878,2]
[377972380,1754638251727,-2000.0,0.0001878,2]
[377972381,1754638251737,-2000.0,0.0001878,2]
[377972382,1754638251747,-2000.0,0.0001878,2]
[377972383,1754638251757,-2000.0,0.0001878,2]
[377972384,1754638251767,-2000.0,0.0001878,2]
[377972385,1754638251778,-2000.0,0.0001878,2]
[377972386,1754638251788,-2000.0,0.0001878,2]
[377972387,1754638251797,-2000.0,0.0001878,2]
[377972388,1754638251810,-2000.0,0.0001878,2]
[377972389,1754638251820,-2000.0,0.0001878,2]
[377972390,1754638251830,-2000.0,0.0001878,2]
[377972391,1754638251840,-2000.0,0.0001878,2]
[377972392,1754638251849,-2000.0,0.0001878,2]
[377972393,1754638251859,-2000.0,0.0001878,2]
[377972394,1754638251869,-2000.0,0.0001878,2]
[377972395,1754638251879,-2000.0,0.0001878,2]
[377972396,1754638251888,-2000.0,0.0001878,2]
[377972397,1754638251897,-2000.0,0.0001878,2]
[377972398,1754638251906,-192.0611313,0.0001878,2]
[377972399,1754638251919,-322.6738687,0.0001878,2]
[377972400,1754638251928,-333.457,0.0001878,2]
[377972401,1754638251939,-859.10511517,0.00018789,2]
[377972402,1754638251949,-1000.22,0.000188,2]
[377972403,1754638251959,-1694.14283372,0.00018801,2]
[377972404,1754638251968,-1694.14283372,0.00018826,2]
[377972405,1754638251978,-1694.14283372,0.00018851,2]
[377972406,1754638251987,-1694.14283372,0.00018875,2]
[377972407,1754638251997,-259.95,0.00018878,2]
[377972408,1754638252007,-685.53,0.0001888,2]
[377972409,1754638252017,-500.0,0.00018899,2]
[377972410,1754638252028,-501.12,0.000189,2]
[377972411,1754638252038,-159.31250702,0.000189,2]
[377972412,1754638252048,-310.33039392,0.000189,3]
[377972413,1754638252057,-5740.05065239,0.000189,2]
[377972414,1754638252070,-214.4879105,0.000189,2]
[377972415,1754638252080,-1694.14283372,0.000189,2]
[377972416,1754638252089,-1635.32639441,0.000189,2]
[377972417,1754638252099,-468.56263734,0.000189,2]
[377972418,1754638252109,-457.64618948,0.00018903,2]
[377972419,1754638252118,-160.0,0.00018903,2]
[377972420,1754638252128,-211.62674257,0.00018903,2]
[377972421,1754638252138,-842.44706758,0.00018903,2]
[377972422,1754638252148,-507.0,0.00018948,2]
[377972423,1754638252157,-295.42425,0.0001895,2]
[377972424,1754638252167,-500.0,0.00018973,2]
[377972425,1754638252176,-500.0,0.00018973,2]
[377972426,1754638252186,-388.71098973,0.00018973,2]
[377972427,1754638252196,-500.0,0.0001898,2]
[377972428,1754638252206,-535.07,0.00018985,2]
[377972429,1754638252215,-168.0,0.00018986,2]
[377972430,1754638252225,-10953.71595774,0.0001899,2]
[377972431,1754638252237,-2393.39315267,0.0001899,2]
[377972432,1754638252248,-7803.35251208,0.0001899,2]
[377972433,1754638252259,-20691.33759105,0.0001899,2]
[377972434,1754638252271,-1829.95917206,0.0001899,2]
[377972435,1754638252281,-168.0,0.00018998,2]
[377972436,1754638252290,-1000.0,0.00018999,2]
[377972437,1754638252300,-500.0,0.00018999,2]
[377972438,1754638252311,-500.0,0.00018999,2]
[377972439,1754638252321,-500.0,0.00018999,2]
[377972440,1754638252331,-500.0,0.00018999,2]
[377972441,1754638252342,-500.0,0.00018999,2]
[377972442,1754638252353,-500.0,0.00018999,2]
[377972443,1754638252364,-500.0,0.00018999,2]
[377972444,1754638252374,-500.0,0.00018999,2]
[377972445,1754638252387,-500.0,0.00018999,2]
[377972446,1754638252398,-500.0,0.00018999,2]
[377972447,1754638252408,-502.82710214,0.00018999,2]
[377972448,1754638252418,-459.3,0.00018999,2]
[377972449,1754638252428,-500.0,0.00018999,2]
[377972450,1754638252438,-348.12,0.00018999,2]
[377972451,1754638252448,-500.0,0.00018999,2]
[377972452,1754638252458,-500.0,0.00018999,2]
[377972453,1754638252468,-500.0,0.00018999,2]
[377972454,1754638252478,-578.10178613,0.00018999,2]
[377972455,1754638252488,-622.25,0.00018999,2]
[377972456,1754638252498,-333.58941059,0.00019,2]
[377972457,1754638252508,-15938.12884511,0.00019,2]
[377972458,1754638252518,-164842.79527225,0.00019,2]
[377972459,1754638252640,-1480.61403063,0.00018779,2]
[377972460,1754638252653,-1133.57596937,0.00018779,2]
[377972461,1754638252663,-139.64003063,0.00019,2]
[377972462,1754638252675,-2158.4752107,0.00019,2]
[377972463,1754638252754,-449.05123927,0.00019,2]
[377972464,1754638253956,-500.0,0.00018777,2]
[377972465,1754638253967,-500.0,0.00018777,2]
[377972466,1754638253976,-32.0686296,0.00018778,2]
[377972467,1754638254245,-367.9313704,0.00018778,2]
[377972468,1754638254255,-400.0,0.00018778,2]
[377972469,1754638254266,-400.0,0.00018778,2]
[377972470,1754638254276,-400.0,0.00018779,2]
[377972471,1754638254287,-500.0,0.00018899,2]
[377972472,1754638254297,-116.8285742,0.00019,2]
[377972473,1754638255138,-400.0,0.00018777,2]
[377972474,1754638255148,-400.0,0.00018777,2]
[377972475,1754638255158,-400.0,0.00018778,2]
[377972476,1754638255168,-3327.14584989,0.00019,2]
[377972477,1754638255254,-511.99997,0.00018948,2]
[377972478,1754638255264,-398.40789429,0.00019,2]
[377972479,1754638255276,-1026.36495632,0.00019,2]
[377972480,1754638275876,912.35,0.00030137,120]
[377972483,1754638366591,508.0,0.00017948,2]
[377972485,1754638438375,193.18,0.00017928,2]
[377972486,1754638512661,666.0,0.00017901,3]
[377972487,1754638519901,184.36583427,0.00018,2]
[377972489,1754638576471,152.66493739,0.000301,120]
[377972490,1754638638979,1000.0,0.00017951,2]
[377972491,1754638735775,343.813758,0.00017998,2]
[377972493,1754638764403,154.0,0.000161,2]
[377972494,1754638764784,151.0,0.0001728,2]
[377972495,1754638821363,315.58,0.00017823,2]
[377972496,1754638851395,1293.41,0.00017814,2]
[377972497,1754638881242,304.78,0.00015068,2]
[377972498,1754638881413,304.78,0.00016656,2]
[377972499,1754638912817,-250.0,0.00018089,2]
[377972500,1754638912843,-150.0,0.00018089,2]
[377972501,1754638913869,1347.38,0.00017814,2]
[377972502,1754638933139,191.42817716,0.00018058,2]
[377972504,1754638935443,152.77,0.00017814,2]
[377972505,1754638935672,152.77,0.00017903,2]
[377972506,1754638935849,152.77,0.00017992,2]
[377972507,1754638990879,387.777015,7.945e-05,2]
[377972508,1754639003019,175.0,0.00017782,7]
[377972509,1754639033649,23900.0,0.00017756,2]
[377972510,1754639043093,296.43,0.00017756,2]
[377972511,1754639068051,250.0,0.00017756,2]
[377972512,1754639114078,150.0,0.00017088,2]
[377972513,1754639114149,150.0,0.00017467,2]
[377972514,1754639114222,150.0,0.00017847,2]
[377972517,1754639225484,286.18,0.00013699,2]
[377972594,1754639257448,150.54,0.00017711,2]
[377972595,1754639258259,150.54,0.00026566,120]
[377972597,1754639297487,150.0,0.000151,2]
[377972598,1754639297848,150.0,0.0001628,2]
[377972599,1754639298598,150.0,0.0001747,2]
[377972607,1754639429863,193.18,0.00017703,2]
[377972631,1754639432259,-242.21724458,0.00018102,2]
[377972632,1754639432270,-1000.0,0.00018102,4]
[377972633,1754639432280,-150.0,0.00018102,2]
[377972634,1754639432291,-150.0,0.00018102,2]
[377972635,1754639432301,-23.17897612,0.00018107,4]
[377972636,1754639432313,-976.82102388,0.00018107,4]
[377972637,1754639432323,-148.69762375,0.00018157,2]
[377972638,1754639432582,-1051.30237625,0.00018157,2]
[377972639,1754639432592,-876.08913686,0.00018158,2]
[377972669,1754639438206,-3925.5,0.00018158,2]
[377972670,1754639438219,-957.1,0.00018158,2]
[377972671,1754639438233,-12804.32856644,0.00018158,2]
[377972672,1754639438245,-5050.39744738,0.00018158,2]
[377972673,1754639438254,-150.0,0.00018227,2]
[377972674,1754639438263,-304.78,0.00018244,2]
[377972675,1754639438273,-267.46074303,0.00018267,2]
[377972676,1754639438282,-201.77227769,0.00018397,2]
[377972677,1754639438292,-508.0,0.00018453,2]
[377972678,1754639438301,-150.0,0.00018607,2]
[377972679,1754639438310,-872.21,0.0001863,2]
[377972680,1754639438319,-150.0,0.0001865,2]
[377972681,1754639438328,-2043.16429864,0.00018676,2]
[377972682,1754639438337,-2623.57,0.00018678,2]
[377972683,1754639438346,-330.94314848,0.00018685,2]
[377972684,1754639438356,-2043.16429856,0.00018701,2]
[377972685,1754639438366,-2043.16429856,0.00018726,2]
[377972686,1754639438376,-3310.81885674,0.0001875,2]
[377972687,1754639438385,-2043.16429856,0.00018751,2]
[377972688,1754639438394,-116.71014216,0.00018767,2]
[377972689,1754639438406,-43.28985784,0.00018767,2]
[377972690,1754639438415,-151.0,0.00018767,2]
[377972691,1754639438425,-169.07,0.0001877,2]
[377972692,1754639438435,-500.0,0.00018773,2]
[377972693,1754639438444,-138.43533717,0.00018775,2]
[377972694,1754639438489,-110.1414342,0.00018775,2]
[377972695,1754639438504,-401.5231942,0.00018775,2]
[377972696,1754639438515,-289.1468058,0.00018775,2]
[377972697,1754639438524,-200.40234377,0.00018776,2]
[377972714,1754639440142,-1842.76195479,0.00018776,2]
[377972715,1754639440152,-473.67,0.00018776,2]
[377972716,1754639440162,-400.0,0.00018776,2]
[377972717,1754639440171,-741.43,0.00018776,2]
[377972718,1754639440181,-400.0,0.00018776,2]
[377972719,1754639440194,-419.61,0.00018776,2]
[377972720,1754639440204,-400.0,0.00018776,2]
[377972721,1754639440213,-668.62,0.00018776,2]
[377972722,1754639440222,-400.0,0.00018776,2]
[377972723,1754639440232,-491.53,0.00018776,2]
[377972724,1754639440241,-596.32,0.00018776,2]
[377972725,1754639440251,-400.0,0.00018776,2]
[377972726,1754639440260,-400.0,0.00018776,2]
[377972727,1754639440270,-514.84,0.00018776,2]
[377972728,1754639440280,-400.0,0.00018776,2]
[377972729,1754639440289,-400.0,0.00018776,2]
[377972730,1754639440298,-400.0,0.00018776,2]
[377972731,1754639440307,-685.57,0.00018776,2]
[377972732,1754639440317,-400.0,0.00018776,2]
[377972733,1754639440326,-400.0,0.00018776,2]
[377972734,1754639440335,-400.0,0.00018776,2]
[377972735,1754639440345,-781.91,0.00018776,2]
[377972736,1754639440355,-933.12,0.00018776,2]
[377972737,1754639440364,-695.88,0.00018776,2]
[377972738,1754639440373,-524.67,0.00018776,2]
[377972739,1754639440383,-916.58,0.00018776,2]
[377972740,1754639440392,-620.86,0.00018776,2]
[377972741,1754639440401,-400.0,0.00018776,2]
[377972742,1754639440410,-400.0,0.00018776,2]
[377972743,1754639440420,-940.72,0.00018776,2]
[377972744,1754639440429,-643.21,0.00018776,2]
[377972745,1754639440439,-723.58,0.00018776,2]
[377972746,1754639440448,-721.77,0.00018776,2]
[377972747,1754639440457,-688.87,0.00018776,2]
[377972749,1754639440467,-400.0,0.00018776,2]
[377972750,1754639440476,-400.0,0.00018776,2]
[377972751,1754639440486,-400.0,0.00018776,2]
[377972752,1754639440498,-400.0,0.00018776,2]
[377972754,1754639440509,-956.52,0.00018776,2]
[377972755,1754639440518,-400.0,0.00018776,2]
[377972756,1754639440528,-434.26,0.00018776,2]
[377972757,1754639440537,-655.99,0.00018776,2]
[377972758,1754639440547,-488.51,0.00018776,2]
[377972759,1754639440556,-1166.47,0.00018776,2]
[377972760,1754639440565,-560.31,0.00018776,2]
[377972761,1754639440575,-727.43,0.00018776,2]
[377972762,1754639440584,-407.97,0.00018776,2]
[377972763,1754639440594,-400.0,0.00018776,2]
[377972764,1754639440603,-666.64,0.00018776,2]
[377972765,1754639440613,-827.68,0.00018776,2]
[377972766,1754639440623,-400.0,0.00018776,2]
[377972767,1754639440632,-400.0,0.00018776,2]
[377972769,1754639440642,-1419.54,0.00018776,2]
[377972771,1754639440652,-400.0,0.00018776,2]
[377972772,1754639440662,-598.85,0.00018776,2]
[377972774,1754639440671,-906.82,0.00018776,2]
[377972775,1754639440681,-400.0,0.00018776,2]
[377972776,1754639440690,-1142.81,0.00018776,2]
[377972777,1754639440700,-400.0,0.00018776,2]
[377972778,1754639440709,-400.0,0.00018776,2]
[377972779,1754639440719,-400.0,0.00018776,2]
[377972780,1754639440728,-400.0,0.00018776,2]
[377972781,1754639440739,-657.97,0.00018776,2]
[377972782,1754639440748,-400.0,0.00018776,2]
[377972783,1754639440757,-830.56,0.00018776,2]
[377972784,1754639440767,-405.88275242,0.00018776,2]
[377972785,1754639440776,-568.76,0.00018776,2]
[377972786,1754639440786,-400.0,0.00018776,2]
[377972787,1754639440795,-83.86823543,0.00018776,2]
[377972788,1754639440808,-316.13176457,0.00018776,2]
[377972789,1754639440817,-176.43545222,0.00018776,2]
[377972790,1754639440971,-676.88168952,0.00018776,2]
[377972791,1754639440986,-27.04285826,0.00018776,2]
[377972792,1754639440995,-400.0,0.00018776,2]
[377972793,1754639441005,-400.0,0.00018776,2]
[377972794,1754639441014,-414.03695453,0.00018776,2]
[377972795,1754639441023,-480.71,0.00018776,2]
[377972796,1754639441033,-400.0,0.00018776,2]
[377972797,1754639441042,-400.0,0.00018776,2]
[377972798,1754639441051,-713.39,0.00018776,2]
[377972799,1754639441061,-404.54,0.00018776,2]
[377972800,1754639441070,-400.0,0.00018776,2]
[377972801,1754639441079,-810.78,0.00018776,2]
[377972802,1754639441089,-1143.51,0.00018776,2]
[377972803,1754639441098,-400.0,0.00018776,2]
[377972804,1754639441107,-400.0,0.00018776,2]
[377972805,1754639441117,-408.46396836,0.00018776,2]
[377972806,1754639441127,-402.95754979,0.00018776,2]
[377972807,1754639441136,-429.26671692,0.00018776,2]
[377972808,1754639441145,-384.920518,0.00018776,2]
[377972809,1754639441155,-404.87005288,0.00018776,2]
[377972810,1754639441164,-650.5,0.00018776,2]
[377972811,1754639441173,-412.39901297,0.00018776,2]
[377972813,1754639441182,-409.51756107,0.00018776,2]
[377972814,1754639441192,-403.26106416,0.00018776,2]
[377972815,1754639441201,-400.0,0.00018776,2]
[377972816,1754639441210,-400.0,0.00018776,2]
[377972817,1754639441220,-202.83374306,0.00018776,2]
[377972818,1754639441232,-197.16625694,0.00018776,2]
[377972819,1754639441242,-60.33734293,0.00018776,2]
[377972820,1754639441253,-396.4423998,0.00018776,2]
[377972821,1754639441264,-21.78833727,0.00018776,2]
[377972822,1754639441274,-266.42603325,0.00018776,2]
[377972823,1754639441286,-133.57396675,0.00018776,2]
[377972824,1754639441296,-150.04203325,0.00018776,2]
[377972884,1754639444828,-455.22,0.00018775,2]
[377972888,1754639444838,-244.56935813,0.00018775,2]
[377973024,1754639446178,-518.0,0.00018453,2]
[377973026,1754639446188,-155.43064187,0.00018775,2]
[377973028,1754639446197,-249.95796675,0.00018776,2]
[377973030,1754639446207,-409.98021162,0.00018776,2]
[377973032,1754639446217,-400.0,0.00018776,2]
[377973034,1754639446226,-401.64130579,0.00018776,2]
[377973036,1754639446235,-403.53777086,0.00018776,2]
[377973038,1754639446245,-477.56,0.00018776,2]
[377973040,1754639446254,-402.94755073,0.00018776,2]
[377973042,1754639446263,-444.31343692,0.00018776,2]